fUST/lending_fUST_20240927
["ID","MTS","AMOUNT","RATE_DAILY","PERIOD"]
[339285960,1727438959270,-323.32561886,0.00016209,2]
[339285961,1727438959292,-500.0,0.00016209,2]
[339285962,1727438959313,-571.94747408,0.00016209,2]
[339285963,1727438959334,-500.0,0.00016209,2]
[339285964,1727438959357,-571.94747408,0.00016209,2]
[339285965,1727438959378,-353.76588782,0.00016209,2]
[339285966,1727438959398,-500.0,0.00016209,2]
[339285967,1727438959421,-571.94747408,0.00016209,2]
[339285968,1727438959442,-500.0,0.00016209,2]
[339285969,1727438959465,-571.94747408,0.00016209,2]
[339285970,1727438959491,-571.94747408,0.00016209,2]
[339285971,1727438959513,-500.0,0.00016209,2]
[339285972,1727438959536,-571.94747408,0.00016209,2]
[339285973,1727438959559,-500.0,0.00016209,2]
[339285974,1727438959581,-571.94747408,0.00016209,2]
[339285975,1727438959603,-500.0,0.00016209,2]
[339285976,1727438959625,-571.94747408,0.00016209,2]
[339285977,1727438959647,-500.0,0.00016209,2]
[339285978,1727438959670,-500.0,0.00016209,2]
[339285979,1727438959691,-155.21743458,0.00016209,2]
[339285980,1727438959714,-571.94747408,0.00016209,2]
[339285981,1727438959737,-571.94747408,0.00016209,2]
[339285982,1727438959759,-500.0,0.00016209,2]
[339285983,1727438959781,-571.94747408,0.00016209,2]
[339285984,1727438959802,-500.0,0.00016209,2]
[339285985,1727438959825,-571.94747408,0.00016209,2]
[339285986,1727438959847,-500.0,0.00016209,2]
[339285987,1727438959870,-571.94747408,0.00016209,2]
[339285988,1727438959894,-571.94747408,0.00016209,2]
[339285989,1727438959916,-500.0,0.00016209,2]
[339285990,1727438959938,-571.94747408,0.00016209,2]
[339285991,1727438959963,-571.94747408,0.00016209,2]
[339285992,1727438959987,-571.94747408,0.00016209,2]
[339285993,1727438960009,-571.94747408,0.00016209,2]
[339285994,1727438960035,-571.94747408,0.00016209,2]
[339285995,1727438960059,-571.94747408,0.00016209,2]
[339285996,1727438960081,-539.34096256,0.00016209,2]
[339286003,1727439010163,250.0,0.0001552,2]
[339286004,1727439010358,135.53455946,0.00015563,2]
[339286011,1727439031926,-114.46544054,0.00015563,2]
[339286012,1727439031936,-250.0,0.00015605,2]
[339286013,1727439031946,-250.0,0.00015648,2]
[339286014,1727439031956,-250.0,0.0001569,2]
[339286015,1727439031965,-250.0,0.00015733,2]
[339286016,1727439031979,-250.0,0.00015776,2]
[339286017,1727439031989,-250.0,0.00015818,2]
[339286018,1727439031999,-250.0,0.00015861,2]
[339286019,1727439032008,-250.0,0.00015903,2]
[339286020,1727439032018,-250.0,0.00015946,2]
[339286021,1727439032028,-250.0,0.00015989,2]
[339286022,1727439032037,-250.0,0.00016031,2]
[339286023,1727439032046,-250.0,0.00016074,2]
[339286024,1727439032056,-250.0,0.00016116,2]
[339286025,1727439032066,-250.0,0.00016159,2]
[339286026,1727439032075,-250.0,0.00016201,2]
[339286027,1727439032085,-300.0,0.00016208,2]
[339286028,1727439032094,-300.0,0.00016208,2]
[339286029,1727439032107,-32.60651152,0.00016209,2]
[339286030,1727439032119,-571.94747408,0.00016209,2]
[339286031,1727439032128,-571.94747408,0.00016209,2]
[339286032,1727439032138,-571.94747408,0.00016209,2]
[339286033,1727439032150,-571.94747408,0.00016209,2]
[339286034,1727439032162,-571.94747408,0.00016209,2]
[339286035,1727439032172,-571.94747408,0.00016209,2]
[339286036,1727439032182,-571.94747408,0.00016209,2]
[339286037,1727439032192,-571.94747408,0.00016209,2]
[339286038,1727439032201,-571.94747408,0.00016209,2]
[339286039,1727439032210,-571.94747408,0.00016209,2]
[339286040,1727439032220,-571.94747408,0.00016209,2]
[339286041,1727439032229,-571.94747408,0.00016209,2]
[339286042,1727439032238,-571.94747408,0.00016209,2]
[339286043,1727439032248,-571.94747408,0.00016209,2]
[339286044,1727439032258,-571.94747408,0.00016209,2]
[339286045,1727439032268,-571.94747408,0.00016209,2]
[339286046,1727439032278,-571.94747408,0.00016209,2]
[339286047,1727439032289,-571.94747408,0.00016209,2]
[339286048,1727439032299,-571.94747408,0.00016209,2]
[339286049,1727439032308,-571.94747408,0.00016209,2]
[339286050,1727439032318,-571.94747408,0.00016209,2]
[339286051,1727439032327,-571.94747408,0.00016209,2]
[339286052,1727439032336,-571.94747408,0.00016209,2]
[339286053,1727439032346,-571.94747408,0.00016209,2]
[339286054,1727439032356,-571.94747408,0.00016209,2]
[339286055,1727439032365,-571.94747408,0.00016209,2]
[339286056,1727439032375,-571.94747408,0.00016209,2]
[339286057,1727439032385,-571.94747408,0.00016209,2]
[339286058,1727439032395,-571.94747408,0.00016209,2]
[339286059,1727439032407,-571.94747408,0.00016209,2]
[339286060,1727439032417,-571.94747408,0.00016209,2]
[339286061,1727439032429,-571.94747408,0.00016209,2]
[339286062,1727439032438,-571.94747408,0.00016209,2]
[339286063,1727439032448,-571.94747408,0.00016209,2]
[339286064,1727439032458,-571.94747408,0.00016209,2]
[339286065,1727439032467,-392.61507614,0.00016209,2]
[339286100,1727439038090,-179.33239794,0.00016209,2]
[339286102,1727439038101,-243.33144543,0.00016209,2]
[339286107,1727439038146,-328.61602865,0.00016209,2]
[339286109,1727439038157,-571.94747408,0.00016209,2]
[339286111,1727439038167,-571.94747408,0.00016209,2]
[339286113,1727439038178,-571.94747408,0.00016209,2]
[339286115,1727439038188,-571.94747408,0.00016209,2]
[339286117,1727439038197,-571.94747408,0.00016209,2]
[339286119,1727439038207,-571.94747408,0.00016209,2]
[339286121,1727439038217,-571.94747408,0.00016209,2]
[339286123,1727439038226,-571.94747408,0.00016209,2]
[339286125,1727439038236,-403.25138871,0.00016209,2]
[339286127,1727439038249,-943.8889317,0.00016209,2]
[339286129,1727439038258,-1347.14032041,0.00016209,2]
[339286131,1727439038268,-1347.14032041,0.00016209,2]
[339286133,1727439038278,-1347.14032041,0.00016209,2]
[339286134,1727439038287,-1347.14032041,0.00016209,2]
[339286136,1727439038297,-1347.14032041,0.00016209,2]
[339286138,1727439038307,-1347.14032041,0.00016209,2]
[339286140,1727439038316,-1347.14032041,0.00016209,2]
[339286142,1727439038325,-1347.14032041,0.00016209,2]
[339286144,1727439038335,-1347.14032041,0.00016209,2]
[339286146,1727439038344,-1347.14032041,0.00016209,2]
[339286148,1727439038354,-1347.14032041,0.00016209,2]
[339286150,1727439038364,-1347.14032041,0.00016209,2]
[339286151,1727439038373,-1347.14032041,0.00016209,2]
[339286153,1727439038382,-1347.14032041,0.00016209,2]
[339286155,1727439038391,-1347.14032041,0.00016209,2]
[339286157,1727439038401,-1347.14032041,0.00016209,2]
[339286159,1727439038411,-1347.14032041,0.00016209,2]
[339286161,1727439038420,-1347.14032041,0.00016209,2]
[339286163,1727439038430,-1347.14032041,0.00016209,2]
[339286165,1727439038439,-1347.14032041,0.00016209,2]
[339286166,1727439038449,-1347.14032041,0.00016209,2]
[339286168,1727439038459,-1347.14032041,0.00016209,2]
[339286170,1727439038469,-1347.14032041,0.00016209,2]
[339286173,1727439038489,-500.0,0.00016209,2]
[339286175,1727439038499,-500.00000001,0.00016209,2]
[339286177,1727439038508,-500.0,0.00016209,2]
[339286179,1727439038519,-500.0,0.00016209,2]
[339286181,1727439038530,-221.79982652,0.00016209,2]
[339286182,1727439038540,-619.95282104,0.00016209,2]
[339286184,1727439038551,-500.0,0.00016209,2]
[339286186,1727439038562,-500.0,0.00016209,2]
[339286188,1727439038571,-500.0,0.00016209,2]
[339286190,1727439038581,-500.0,0.00016209,2]
[339286192,1727439038590,-500.0,0.00016209,2]
[339286194,1727439038600,-354.08601224,0.00016209,2]
[339286196,1727439038609,-500.0,0.00016209,2]
[339286198,1727439038619,-500.0,0.00016209,2]
[339286199,1727439038628,-500.0,0.00016209,2]
[339286201,1727439038637,-500.0,0.00016209,2]
[339286203,1727439038647,-500.0,0.00016209,2]
[339286205,1727439038656,-550.0,0.00016209,2]
[339286207,1727439038665,-500.0,0.00016209,2]
[339286209,1727439038676,-165.50369135,0.00016209,2]
[339286211,1727439038685,-500.0,0.00016209,2]
[339286213,1727439038694,-500.0,0.00016209,2]
[339286215,1727439038704,-500.0,0.00016209,2]
[339286217,1727439038715,-500.0,0.00016209,2]
[339286219,1727439038726,-500.0,0.00016209,2]
[339286221,1727439038736,-500.0,0.00016209,2]
[339286223,1727439038747,-994.51516599,0.00016209,2]
[339286225,1727439038758,-500.0,0.00016209,2]
[339286227,1727439038768,-994.51516599,0.00016209,2]
[339286229,1727439038778,-500.0,0.00016209,2]
[339286231,1727439038788,-994.51516599,0.00016209,2]
[339286233,1727439038797,-500.0,0.00016209,2]
[339286235,1727439038806,-994.51516599,0.00016209,2]
[339286237,1727439038815,-994.51516599,0.00016209,2]
[339286239,1727439038825,-300.0,0.00016209,2]
[339286240,1727439038834,-994.51516599,0.00016209,2]
[339286242,1727439038844,-994.51516599,0.00016209,2]
[339286244,1727439038853,-994.51516599,0.00016209,2]
[339286246,1727439038862,-994.51516599,0.00016209,2]
[339286248,1727439038871,-229.296912,0.0001621,2]
[339286250,1727439038881,-24900.0,0.0001621,2]
[339286252,1727439038891,-250.0,0.00016244,2]
[339286254,1727439038900,-500.0,0.00016273,2]
[339286256,1727439038909,-2005.89742585,0.00016273,2]
[339286258,1727439038919,-500.0,0.00016273,2]
[339286260,1727439038929,-500.0,0.00016273,2]
[339286262,1727439038938,-250.0,0.00016287,2]
[339286263,1727439038947,-250.0,0.00016329,2]
[339286265,1727439038956,-360.8869004,0.00016368,2]
[339286267,1727439038966,-87325.3489067,0.00016469,2]
[339286269,1727439038976,-2726.25051375,0.00016469,2]
[339286271,1727439038985,-298.00801653,0.00016473,2]
[339286273,1727439038994,-500.0,0.00016473,2]
[339286275,1727439039004,-500.0,0.00016473,2]
[339286277,1727439039013,-500.0,0.00016473,2]
[339286279,1727439039022,-500.0,0.00016473,2]
[339286280,1727439039032,-1001.66996351,0.00016821,2]
[339286282,1727439039046,-501.27116935,0.00016821,2]
[339286284,1727439039055,-1000.0,0.00016821,2]
[339286286,1727439039064,-1000.0,0.00017021,2]
[339286288,1727439039073,-459.75232836,0.00017021,2]
[339286290,1727439039082,-360.88690039,0.00017046,2]
[339286292,1727439039092,-150.0,0.00017143,2]
[339286294,1727439039101,-272.0,0.0001732,2]
[339286296,1727439039111,-349301.395627,0.00017343,2]
[339286298,1727439039120,-16357.5030825,0.00017343,2]
[339286299,1727439039130,-500.0,0.00017373,2]
[339286300,1727439039139,-500.0,0.00017373,2]
[339286301,1727439039148,-500.0,0.00017373,2]
[339286302,1727439039157,-500.0,0.00017373,2]
[339286303,1727439039166,-500.0,0.00017373,2]
[339286304,1727439039176,-500.0,0.00017373,2]
[339286305,1727439039185,-500.13969444,0.00017373,2]
[339286306,1727439039194,-500.0,0.00017373,2]
[339286307,1727439039203,-500.50451328,0.00017373,2]
[339286308,1727439039212,-500.39443641,0.00017373,2]
[339286309,1727439039222,-607.97974619,0.00017531,2]
[339286310,1727439039231,-420.0,0.00017717,2]
[339286312,1727439039241,-360.88690039,0.00017723,2]
[339286314,1727439039250,-500.0,0.00017731,2]
[339286315,1727439039260,-420.0,0.00017828,2]
[339286316,1727439039269,-272.0,0.0001785,2]
[339286317,1727439039278,-500.0,0.00017921,2]
[339286318,1727439039287,-1002.95174599,0.00017921,2]
[339286319,1727439039296,-1000.0,0.00017921,2]
[339286320,1727439039306,-1000.0,0.00017921,2]
[339286321,1727439039315,-1000.0,0.00017921,2]
[339286322,1727439039325,-157.91095603,0.00018,2]
[339286323,1727439039334,-157.91095603,0.00018,2]
[339286324,1727439039343,-157.91095603,0.00018,2]
[339286325,1727439039353,-272.0,0.0001837,2]
[339286326,1727439039362,-360.88690039,0.00018401,2]
[339286327,1727439039371,-1500.0,0.00018631,2]
[339286328,1727439039382,-500.0,0.00018631,2]
[339286329,1727439039391,-628.71719174,0.00018631,2]
[339286330,1727439039400,-151.085,0.000188,3]
[339286331,1727439039410,-272.0,0.000189,2]
[339286332,1727439039419,-160.882851,0.00018904,2]
[339286333,1727439039429,-360.88690039,0.00019078,2]
[339286334,1727439039439,-1001.89107665,0.00019148,2]
[339286335,1727439039448,-8178.75154125,0.00019158,3]
[339286336,1727439039457,-2726.25051375,0.00019168,3]
[339286337,1727439039467,-151.0,0.00019178,2]
[339286338,1727439039479,-639.05364127,0.00019178,2]
[339286339,1727439039491,-397.29062271,0.00019178,2]
[339286340,1727439039501,-194.33136475,0.00019178,2]
[339286341,1727439039511,-520.48870808,0.00019178,2]
[339286342,1727439039520,-691.89,0.00019178,2]
[339286343,1727439039531,-509.13465812,0.00019178,2]
[339286344,1727439039541,-500.0,0.00019178,2]
[339286345,1727439039551,-500.0,0.00019178,2]
[339286346,1727439039561,-500.0,0.00019178,2]
[339286347,1727439039571,-752.32,0.00019178,2]
[339286348,1727439039580,-842.93,0.00019178,2]
[339286349,1727439039589,-500.0,0.00019178,2]
[339286351,1727439039598,-500.0,0.00019178,2]
[339286352,1727439039607,-500.0,0.00019178,2]
[339286353,1727439039617,-500.0,0.00019178,2]
[339286355,1727439039626,-245.8643671,0.00019178,2]
[339286357,1727439039635,-500.0,0.00019178,2]
[339286359,1727439039644,-500.0,0.00019178,2]
[339286361,1727439039653,-500.0,0.00019178,2]
[339286363,1727439039662,-504.0,0.00019178,2]
[339286365,1727439039672,-315.69908596,0.00019178,2]
[339286367,1727439039681,-500.0,0.00019178,2]
[339286369,1727439039691,-523.45704906,0.00019178,2]
[339286371,1727439039701,-500.0,0.00019178,2]
[339286373,1727439039710,-500.0,0.00019178,2]
[339286375,1727439039719,-1303.73,0.00019178,2]
[339286377,1727439039729,-500.0,0.00019178,2]
[339286379,1727439039738,-1525.07,0.00019178,2]
[339286381,1727439039747,-220.63047378,0.00019178,2]
[339286383,1727439039756,-500.0,0.00019178,2]
[339286385,1727439039765,-500.0,0.00019178,2]
[339286387,1727439039774,-500.0,0.00019178,2]
[339286389,1727439039784,-500.0,0.00019178,2]
[339286391,1727439039793,-500.0,0.00019178,2]
[339286393,1727439039803,-200.0,0.00019178,2]
[339286395,1727439039812,-500.0,0.00019178,2]
[339286398,1727439039821,-949.71,0.00019178,2]
[339286400,1727439039830,-500.0,0.00019178,2]
[339286402,1727439039839,-500.0,0.00019178,2]
[339286404,1727439039849,-500.0,0.00019178,2]
[339286406,1727439039858,-2111.72,0.00019178,2]
[339286408,1727439039867,-500.0,0.00019178,2]
[339286410,1727439039876,-811.11,0.00019178,2]
[339286413,1727439039886,-500.0,0.00019178,2]
[339286415,1727439039896,-500.0,0.00019178,2]
[339286417,1727439039905,-500.0,0.00019178,2]
[339286418,1727439039915,-500.0,0.00019178,2]
[339286420,1727439039924,-500.0,0.00019178,2]
[339286422,1727439039934,-500.0,0.00019178,2]
[339286424,1727439039943,-500.0,0.00019178,2]
[339286427,1727439039953,-500.0,0.00019178,2]
[339286429,1727439039962,-500.0,0.00019178,2]
[339286431,1727439039971,-500.0,0.00019178,2]
[339286432,1727439039980,-1388.27,0.00019178,2]
[339286435,1727439039989,-500.0,0.00019178,2]
[339286436,1727439039999,-13006.57,0.00019178,2]
[339286438,1727439040008,-163.39219,0.00019178,2]
[339286440,1727439040017,-2634.61476816,0.00019332,2]
[339286442,1727439040026,-587.0,0.00019366,2]
[339286445,1727439040036,-2000.0,0.0001942,2]
[339286447,1727439040045,-16357.5030825,0.00019422,3]
[339286449,1727439040054,-160.0,0.00019431,2]
[339286451,1727439040063,-160.0,0.00019431,2]
[339286453,1727439040075,-151.0,0.00019432,2]
[339286455,1727439040084,-211.665211,0.00019432,2]
[339286457,1727439040094,-310.816321,0.00019432,2]
[339286459,1727439040104,-211.665211,0.00019432,2]
[339286461,1727439040114,-310.816321,0.00019432,2]
[339286463,1727439040123,-151.0,0.00019432,2]
[339286465,1727439040132,-151.0,0.00019432,2]
[339286467,1727439040142,-295.36111,0.00019432,2]
[339286469,1727439040152,-172.582341,0.00019432,2]
[339286471,1727439040163,-172.582341,0.00019432,2]
[339286473,1727439040172,-194.523868,0.00019432,2]
[339286475,1727439040182,-194.523868,0.00019432,2]
[339286477,1727439040191,-291.916776,0.00019432,2]
[339286479,1727439040203,-291.916776,0.00019432,2]
[339286481,1727439040215,-181.831058,0.00019432,2]
[339286483,1727439040225,-181.831058,0.00019432,2]
[339286485,1727439040234,-859.198566,0.00019432,2]
[339286487,1727439040243,-859.198566,0.00019432,2]
[339286489,1727439040252,-151.445429,0.00019432,2]
[339286491,1727439040262,-151.445429,0.00019432,2]
[339286493,1727439040271,-151.0,0.00019432,2]
[339286495,1727439040280,-2726.25051375,0.00019442,3]
[339286497,1727439040289,-691.89,0.00019452,2]
[339286499,1727439040299,-752.32,0.00019452,2]
[339286501,1727439040308,-842.93,0.00019452,2]
[339286503,1727439040317,-500.0,0.00019452,2]
[339286505,1727439040326,-500.0,0.00019452,2]
[339286507,1727439040335,-500.0,0.00019452,2]
[339286509,1727439040346,-500.0,0.00019452,2]
[339286511,1727439040355,-500.0,0.00019452,2]
[339286526,1727439040489,-1303.73,0.00019452,2]
[339286528,1727439040499,-500.0,0.00019452,2]
[339286530,1727439040509,-1525.07,0.00019452,2]
[339286532,1727439040518,-500.0,0.00019452,2]
[339286534,1727439040528,-320.21002844,0.00019452,2]
[339286536,1727439040538,-500.0,0.00019452,2]
[339286538,1727439040547,-211.665211,0.00019452,2]
[339286539,1727439040557,-310.816321,0.00019452,2]
[339286541,1727439040566,-211.665211,0.00019452,2]
[339286543,1727439040575,-500.0,0.00019452,2]
[339286545,1727439040585,-310.816321,0.00019452,2]
[339286548,1727439040594,-151.0,0.00019452,2]
[339286550,1727439040603,-200.0,0.00019452,2]
[339286552,1727439040613,-151.0,0.00019452,2]
[339286554,1727439040624,-172.582341,0.00019452,2]
[339286556,1727439040635,-172.582341,0.00019452,2]
[339286558,1727439040644,-949.71,0.00019452,2]
[339286560,1727439040655,-151.0,0.00019452,2]
[339286562,1727439040665,-151.0,0.00019452,2]
[339286564,1727439040675,-194.523868,0.00019452,2]
[339286566,1727439040684,-194.523868,0.00019452,2]
[339286568,1727439040693,-291.916776,0.00019452,2]
[339286570,1727439040702,-151.0,0.00019452,2]
[339286572,1727439040711,-291.916776,0.00019452,2]
[339286573,1727439040720,-2111.72,0.00019452,2]
[339286575,1727439040729,-811.11,0.00019452,2]
[339286577,1727439040739,-158.831207,0.00019452,2]
[339286579,1727439040748,-158.831207,0.00019452,2]
[339286581,1727439040757,-151.0,0.00019452,2]
[339286583,1727439040767,-151.0,0.00019452,2]
[339286585,1727439040776,-166.913554,0.00019452,2]
[339286587,1727439040786,-166.913554,0.00019452,2]
[339286589,1727439040795,-500.0,0.00019452,2]
[339286591,1727439040805,-181.831058,0.00019452,2]
[339286593,1727439040815,-181.831058,0.00019452,2]
[339286596,1727439040825,-500.0,0.00019452,2]
[339286598,1727439040835,-1975.933074,0.00019452,2]
[339286600,1727439040846,-500.0,0.00019452,2]
[339286602,1727439040855,-1975.933074,0.00019452,2]
[339286604,1727439040865,-500.0,0.00019452,2]
[339286606,1727439040874,-859.198566,0.00019452,2]
[339286608,1727439040884,-859.198566,0.00019452,2]
[339286610,1727439040893,-151.445429,0.00019452,2]
[339286612,1727439040902,-151.445429,0.00019452,2]
[339286614,1727439040911,-1388.27,0.00019452,2]
[339286616,1727439040920,-500.0,0.00019452,2]
[339286618,1727439040930,-151.0,0.00019452,2]
[339286619,1727439040939,-333.704206,0.00019452,2]
[339286621,1727439040950,-333.704206,0.00019452,2]
[339286623,1727439040959,-13006.57,0.00019452,2]
[339286625,1727439040969,-500.0,0.00019473,2]
[339286627,1727439040978,-500.84471371,0.00019473,2]
[339286629,1727439040988,-150.112234,0.000196,2]
[339286631,1727439040997,-587.0,0.00019611,2]
[339286634,1727439041007,-2726.25051375,0.0001966,3]
[339286636,1727439041018,-309.20853301,0.00019669,2]
[339286638,1727439041028,-691.89,0.00019726,2]
[339286640,1727439041037,-752.32,0.00019726,2]
[339286642,1727439041046,-842.93,0.00019726,2]
[339286644,1727439041056,-500.0,0.00019726,2]
[339286646,1727439041065,-482.4761541,0.00019726,2]
[339286648,1727439041074,-500.0,0.00019726,2]
[339286649,1727439041083,-500.0,0.00019726,2]
[339286651,1727439041093,-1303.73,0.00019726,2]
[339286653,1727439041102,-500.0,0.00019726,2]
[339286655,1727439041111,-1525.07,0.00019726,2]
[339286657,1727439041121,-229.79980193,0.00019726,2]
[339286660,1727439041130,-500.0,0.00019726,2]
[339286662,1727439041140,-500.0,0.00019726,2]
[339286663,1727439041151,-200.0,0.00019726,2]
[339286666,1727439041160,-949.71,0.00019726,2]
[339286668,1727439041170,-2111.72,0.00019726,2]
[339286670,1727439041179,-811.11,0.00019726,2]
[339286672,1727439041189,-500.0,0.00019726,2]
[339286674,1727439041198,-500.0,0.00019726,2]
[339286676,1727439041208,-500.0,0.00019726,2]
[339286678,1727439041217,-500.0,0.00019726,2]
[339286680,1727439041227,-1388.27,0.00019726,2]
[339286682,1727439041236,-500.0,0.00019726,2]
[339286683,1727439041245,-13006.57,0.00019726,2]
[339286685,1727439041255,-2726.25051375,0.0001977,3]
[339286687,1727439041264,-404.07975281,0.00019773,2]
[339286689,1727439041273,-500.0,0.00019773,2]
[339286691,1727439041283,-41138.29500102,0.0001978,2]
[339286699,1727439041350,-182004.3728362,0.0001978,2]
[339286702,1727439041360,-151.0,0.0001978,2]
[339286704,1727439041369,-251.147236,0.0001978,2]
[339286706,1727439041379,-166.913554,0.0001978,2]
[339286708,1727439041388,-166.913554,0.0001978,2]
[339286710,1727439041398,-1975.933074,0.0001978,2]
[339286712,1727439041407,-1975.933074,0.0001978,2]
[339286714,1727439041418,-151.445429,0.0001978,2]
[339286716,1727439041427,-151.445429,0.0001978,2]
[339286718,1727439041437,-151.0,0.0001978,2]
[339286720,1727439041446,-333.704206,0.0001978,2]
[339286722,1727439041455,-333.704206,0.0001978,2]
[339286724,1727439041465,-153.0,0.0001987,2]
[339286726,1727439041475,-153.0,0.0001987,2]
[339286728,1727439041488,-153.0,0.0001987,2]
[339286730,1727439041497,-153.0,0.0001987,2]
[339286731,1727439041506,-153.0,0.0001987,2]
[339286733,1727439041516,-153.0,0.0001987,2]
[339286735,1727439041526,-153.0,0.0001987,2]
[339286738,1727439041538,-153.0,0.0001987,2]
[339286739,1727439041548,-153.0,0.0001987,2]
[339286741,1727439041560,-153.0,0.0001987,2]
[339286743,1727439041570,-153.0,0.0001987,2]
[339286745,1727439041580,-153.0,0.0001987,2]
[339286747,1727439041589,-153.0,0.0001987,2]
[339286749,1727439041597,-153.0,0.0001987,2]
[339286751,1727439041607,-153.0,0.0001987,2]
[339286753,1727439041617,-153.0,0.0001987,2]
[339286755,1727439041626,-153.0,0.0001987,2]
[339286757,1727439041636,-153.0,0.0001987,2]
[339286759,1727439041646,-153.0,0.0001987,2]
[339286761,1727439041655,-153.0,0.0001987,2]
[339286763,1727439041664,-153.0,0.0001987,2]
[339286765,1727439041673,-153.0,0.0001987,2]
[339286768,1727439041683,-153.0,0.0001987,2]
[339286770,1727439041693,-153.0,0.0001987,2]
[339286772,1727439041706,-153.0,0.00019876,2]
[339286774,1727439041723,-153.0,0.00019876,2]
[339286775,1727439041732,-153.0,0.00019876,2]
[339286777,1727439041742,-153.0,0.00019876,2]
[339286779,1727439041751,-153.0,0.00019876,2]
[339286781,1727439041760,-153.0,0.00019876,2]
[339286783,1727439041770,-153.0,0.00019876,2]
[339286785,1727439041780,-153.0,0.00019876,2]
[339286787,1727439041790,-153.0,0.00019876,2]
[339286789,1727439041799,-153.0,0.00019876,2]
[339286791,1727439041808,-153.0,0.00019876,2]
[339286793,1727439041817,-153.0,0.00019876,2]
[339286796,1727439041829,-153.0,0.00019876,2]
[339286798,1727439041840,-153.0,0.00019876,2]
[339286800,1727439041849,-153.0,0.00019876,2]
[339286802,1727439041860,-153.0,0.00019876,2]
[339286803,1727439041868,-153.0,0.00019876,2]
[339286805,1727439041878,-153.0,0.00019876,2]
[339286807,1727439041887,-153.0,0.00019876,2]
[339286809,1727439041896,-153.0,0.00019876,2]
[339286811,1727439041905,-153.0,0.00019876,2]
[339286813,1727439041915,-153.0,0.00019876,2]
[339286815,1727439041924,-153.0,0.00019876,2]
[339286817,1727439041934,-153.0,0.00019876,2]
[339286819,1727439041944,-153.0,0.00019876,2]
[339286821,1727439041953,-153.0,0.00019876,2]
[339286823,1727439041963,-153.0,0.00019876,2]
[339286825,1727439041971,-153.0,0.00019876,2]
[339286827,1727439041980,-153.0,0.00019876,2]
[339286829,1727439041989,-153.0,0.00019876,2]
[339286831,1727439041998,-153.0,0.00019876,2]
[339286833,1727439042008,-153.0,0.00019876,2]
[339286835,1727439042017,-153.0,0.00019876,2]
[339286837,1727439042026,-153.0,0.00019876,2]
[339286839,1727439042036,-153.0,0.00019876,2]
[339286841,1727439042045,-153.0,0.00019876,2]
[339286843,1727439042054,-153.0,0.00019876,2]
[339286844,1727439042064,-153.0,0.00019876,2]
[339286846,1727439042073,-153.0,0.00019876,2]
[339286848,1727439042082,-153.0,0.00019876,2]
[339286850,1727439042092,-153.0,0.00019876,2]
[339286852,1727439042101,-153.0,0.00019876,2]
[339286854,1727439042110,-153.0,0.00019876,2]
[339286856,1727439042119,-153.0,0.00019876,2]
[339286858,1727439042129,-3848.0,0.000199,2]
[339286860,1727439042139,-500.0,0.00019973,2]
[339286862,1727439042148,-500.0,0.00019973,2]
[339286864,1727439042157,-211.665211,0.0001998,2]
[339286866,1727439042166,-310.816321,0.0001998,2]
[339286868,1727439042176,-211.665211,0.0001998,2]
[339286870,1727439042185,-310.816321,0.0001998,2]
[339286872,1727439042194,-151.0,0.0001998,2]
[339286874,1727439042203,-151.0,0.0001998,2]
[339286876,1727439042213,-172.582341,0.0001998,2]